bitfinex/quotes_SOLUSD_20250529
["timestamp","ask_amount","ask_price","bid_price","bid_amount"]
[1748503718540,49.17028599,172.91,172.87,12.26187507]
[1748503718903,12.26187507,172.88,172.82,12.26187507]
[1748503719137,48.10187507,172.88,172.82,12.26187507]
[1748503719737,35.84,172.88,172.85,31.0536855]
[1748503720733,147.2213194,172.89,172.85,31.0536855]
[1748503720936,5.78435909,172.88,172.85,31.0536855]
[1748503722439,5.78435909,172.88,172.86,12.26187507]
[1748503723727,5.78435909,172.88,172.85,12.40403664]
[1748503724044,5.78435909,172.88,172.85,7.99135951]
[1748503726849,5.78435909,172.88,172.86,7.84919794]
[1748503728242,5.78435909,172.88,172.84,0.14216157]
[1748503728419,5.78435909,172.88,172.84,7.99135951]
[1748503729224,5.78435909,172.88,172.83,7.99135951]
[1748503730246,7.84919794,172.87,172.83,0.14216157]
[1748503730449,7.84919794,172.87,172.82,7.84919794]
[1748503731520,5.78502834,172.86,172.82,7.84919794]
[1748503731947,5.78502834,172.86,172.82,12.26919253]
[1748503733147,18.05422087,172.86,172.81,0.28432314]
[1748503733342,18.05422087,172.86,172.82,12.26919253]
[1748503733961,5.78502834,172.86,172.82,12.26919253]
[1748503748131,5.78502834,172.86,172.83,12.4113541]
[1748503748333,5.78502834,172.86,172.84,12.26919253]
[1748503748528,5.78502834,172.86,172.85,12.26919253]
[1748503750263,9.42,172.88,172.86,18.79181043]
[1748503750561,9.42,172.88,172.87,12.26919253]
[1748503750932,16.66666667,172.91,172.88,18.64964886]
[1748503751171,22.45007275,172.91,172.89,0.14216157]
[1748503751660,16.66666667,172.91,172.89,12.4113541]
[1748503754061,16.66666667,172.91,172.89,7.9880834]
[1748503756444,16.66666667,172.91,172.9,26.63773226]
[1748503757256,16.66666667,172.91,172.9,26.77989383]
[1748503765173,16.66666667,172.91,172.9,18.933972]
[1748503765474,16.66666667,172.91,172.9,26.77989383]
[1748503771577,16.66666667,172.91,172.9,18.933972]
[1748503771756,16.66666667,172.91,172.9,26.77989383]
[1748503772071,16.66666667,172.91,172.9,18.933972]
[1748503772253,16.66666667,172.91,172.9,26.77989383]
[1748503772453,16.66666667,172.91,172.9,18.933972]
[1748503772768,16.66666667,172.91,172.9,26.77989383]
[1748503776883,22.45002217,172.91,172.9,18.79181043]
[1748503780077,16.66666667,172.91,172.9,18.79181043]
[1748503780677,16.66666667,172.91,172.9,26.63773226]
[1748503781157,16.66666667,172.91,172.9,26.77989383]
[1748503787796,16.66666667,172.91,172.9,32.56358382]
[1748503787976,16.66666667,172.91,172.9,34.20358382]
[1748503788377,16.66666667,172.91,172.9,65.58727114]
[1748503789163,16.66666667,172.91,172.9,34.20358382]
[1748503789359,16.66666667,172.91,172.9,65.58727114]
[1748503791498,16.66666667,172.91,172.9,20.573972]
[1748503791817,16.66666667,172.91,172.9,28.41989383]
[1748503794670,16.66666667,172.91,172.9,59.80358115]
[1748503794892,16.66666667,172.91,172.9,28.41989383]
[1748503801002,16.66666667,172.91,172.9,26.77989383]
[1748503801781,16.66666667,172.91,172.9,26.63773226]
[1748503802216,16.66666667,172.91,172.84,10.9723]
[1748503802217,22.45002217,172.91,172.84,10.9723]
[1748503802503,22.45002217,172.91,172.89,18.64964886]
[1748503802685,22.45002217,172.91,172.89,7.84592183]
[1748503802881,16.66666667,172.91,172.89,7.84592183]
[1748503803301,22.45003891,172.91,172.89,7.84592183]
[1748503804031,16.66666667,172.91,172.9,7.9880834]
[1748503804207,16.66666667,172.91,172.9,26.77989383]
[1748503805895,16.66666667,172.91,172.9,32.56358382]
[1748503806528,16.66666667,172.91,172.9,26.77989383]
[1748503810023,16.66666667,172.91,172.9,31.19023382]
[1748503810416,16.66666667,172.91,172.9,18.933972]
[1748503810616,16.66666667,172.91,172.9,31.19023382]
[1748503811813,22.45002217,172.91,172.84,1.5723]
[1748503812142,31.83002217,172.91,172.87,18.64964886]
[1748503812304,31.83002217,172.91,172.87,30.90591068]
[1748503813011,31.83002217,172.91,172.88,0.14216157]
[1748503813429,31.83002217,172.91,172.88,12.39842339]
[1748503813741,26.04666667,172.91,172.9,0.14216157]
[1748503813913,26.04666667,172.91,172.9,18.79181043]
[1748503814646,26.04666667,172.91,172.9,31.19023382]
[1748503814938,16.66666667,172.91,172.9,31.19023382]
[1748503822142,16.66666667,172.91,172.9,49.23018563]
[1748503824815,16.66666667,172.91,172.9,18.933972]
[1748503825121,16.66666667,172.91,172.9,31.19023382]
[1748503827421,16.66666667,172.91,172.9,43.44649564]
[1748503830226,16.66666667,172.91,172.9,31.19023382]
[1748503834137,16.66666667,172.91,172.9,36.97392381]
[1748503834334,16.66666667,172.91,172.9,31.19023382]
[1748503835356,16.66666667,172.91,172.9,36.97392381]
[1748503836942,16.66666667,172.91,172.9,49.23018563]
[1748503837144,16.66666667,172.91,172.9,75.23018563]
[1748503838757,16.66666667,172.91,172.9,69.44649564]
[1748503840056,16.66666667,172.91,172.9,75.23018563]
[1748503843962,16.66666667,172.91,172.9,89.91899529]
[1748503844150,16.66666667,172.91,172.9,63.91899529]
[1748503844666,9.38,172.98,172.94,18.79181043]
[1748503844870,9.38,172.98,172.97,18.79181043]
[1748503844871,15.16101514,172.98,172.97,18.79181043]
[1748503847562,5.78068096,172.99,172.97,18.79181043]
[1748503849149,5.78068096,172.99,172.98,18.79181043]
[1748503850063,5.78068096,172.99,172.98,0.14216157]
[1748503851487,5.78068096,172.99,172.95,0.28432314]
[1748503851676,5.78068096,172.99,172.98,0.14216157]
[1748503852347,5.78034682,173.0,172.98,0.14216157]
[1748503860457,5.78034682,173.0,172.97,18.64964886]
[1748503860776,5.78034682,173.0,172.95,0.28432314]
[1748503860777,7.84026666,172.99,172.95,0.28432314]
[1748503860958,7.84026666,172.99,172.94,26.48991552]
[1748503861279,7.84026666,172.99,172.95,0.28432314]
[1748503861870,7.84026666,172.99,172.95,0.14216157]
[1748503862183,7.84026666,172.99,172.93,26.0]
[1748503862184,7.84026666,172.98,172.93,7.84026666]
[1748503862360,7.84026666,172.98,172.94,18.64964886]
[1748503862882,5.78134936,172.97,172.94,18.64964886]
[1748503863759,7.84026666,172.99,172.94,26.48991552]
[1748503863970,7.84026666,172.99,172.95,0.14216157]
[1748503865171,7.84026666,172.99,172.95,7.98242823]
[1748503865580,28.07148053,173.0,172.95,7.98242823]
[1748503867487,28.07148053,173.0,172.95,0.14216157]
[1748503867798,7.84026666,172.97,172.9,0.14216157]
[1748503867960,33.84026666,172.97,172.92,18.64964886]
[1748503868160,7.84026666,172.97,172.92,18.64964886]
[1748503868569,35.7,172.98,172.92,18.64964886]
[1748503868570,7.84026666,172.96,172.92,18.64964886]
[1748503868770,7.84026666,172.96,172.86,27.5157]
[1748503868771,7.84026666,172.94,172.88,7.84026666]
[1748503868983,7.84026666,172.92,172.87,7.84026666]
[1748503869294,7.84026666,172.92,172.88,18.64964886]
[1748503869795,5.7833555,172.91,172.88,18.64964886]
[1748503869987,5.7833555,172.91,172.88,18.79181043]
[1748503871666,12.26156437,172.9,172.84,26.0]
[1748503871982,9.34,172.9,172.85,12.26156437]
[1748503872187,9.34,172.9,172.87,12.26156437]
[1748503872486,9.34,172.9,172.86,12.26156437]
[1748503873404,9.34,172.9,172.84,0.28432314]
[1748503873405,15.12377294,172.9,172.88,12.26156437]
[1748503873570,15.12377294,172.9,172.89,12.26156437]
[1748503874589,15.12377294,172.9,172.88,12.40372594]
[1748503875193,15.12377294,172.9,172.88,0.14216157]
[1748503875789,15.12377294,172.9,172.88,12.40372594]
[1748503876907,15.12377294,172.9,172.84,18.933972]
[1748503877194,27.38533731,172.9,172.86,18.79181043]
[1748503878212,15.12377294,172.9,172.86,18.79181043]
[1748503878406,29.58299792,172.9,172.86,18.79181043]
[1748503878977,12.26156437,172.89,172.84,18.64964886]
[1748503879192,12.26156437,172.88,172.84,18.64964886]
[1748503879407,12.26156437,172.87,172.82,12.26156437]
[1748503879615,12.26156437,172.87,172.83,18.64964886]
[1748503879779,182.9213194,172.89,172.83,12.26156437]
[1748503879780,12.26156437,172.88,172.83,12.26156437]
[1748503880472,5.7846937,172.87,172.83,12.26156437]
[1748503881780,5.7846937,172.87,172.82,0.28432314]
[1748503881974,5.7846937,172.87,172.83,12.26156437]
[1748503884502,5.7846937,172.87,172.82,0.14216157]
[1748503884503,20.24642795,172.87,172.82,0.14216157]
[1748503884709,32.50799232,172.87,172.82,12.40372594]
[1748503886006,20.24642795,172.87,172.83,12.26156437]
[1748503886212,5.7846937,172.87,172.84,0.14216157]
[1748503886387,5.7846937,172.87,172.84,12.26156437]
[1748503886880,5.7846937,172.87,172.84,0.14216157]
[1748503887714,5.7846937,172.87,172.84,12.40372594]
[1748503887915,5.7846937,172.87,172.85,12.26156437]
[1748503888286,5.7846937,172.87,172.84,0.14216157]
[1748503888489,5.7846937,172.87,172.85,12.26156437]
[1748503890918,5.78435909,172.88,172.85,12.26156437]
[1748503892691,5.78435909,172.88,172.84,12.40372594]
[1748503893597,20.24525682,172.88,172.81,0.14216157]
[1748503893816,20.24525682,172.88,172.84,12.26156437]
[1748503894013,20.24525682,172.88,172.82,0.14216157]
[1748503894014,12.26156437,172.86,172.82,0.14216157]
[1748503894325,20.24525682,172.88,172.8,12.26156437]
[1748503894326,12.26156437,172.85,172.8,12.26156437]
[1748503894531,12.26156437,172.85,172.8,12.40372594]
[1748503895042,12.26156437,172.86,172.81,12.26156437]
[1748503895607,5.78536303,172.85,172.81,12.26156437]
[1748503896423,5.78536303,172.85,172.8,0.14216157]
[1748503896424,5.78536303,172.85,172.82,12.26156437]
[1748503897003,5.78536303,172.85,172.8,0.28432314]
[1748503897204,5.78536303,172.85,172.82,12.26156437]
[1748503897928,5.78502834,172.86,172.82,12.26156437]
[1748503898222,5.78502834,172.86,172.8,0.28432314]
[1748503898424,5.78502834,172.86,172.82,12.26156437]
[1748503898802,18.04659271,172.86,172.8,0.28432314]
[1748503899297,18.04659271,172.86,172.81,12.26156437]
[1748503902819,27.38659271,172.86,172.81,12.26156437]
[1748503904144,15.12502834,172.86,172.83,12.26156437]
[1748503904307,15.12502834,172.86,172.82,0.14216157]
[1748503904507,41.84916357,172.86,172.81,12.26156437]
[1748503906018,37.44104152,172.86,172.81,7.85344232]
[1748503907414,7.85344232,172.85,172.8,7.99560389]
[1748503907908,7.85344232,172.85,172.79,18.64964886]
[1748503908110,7.85344232,172.85,172.8,7.85344232]
[1748503909349,7.85344232,172.81,172.77,0.14216157]
[1748503909554,7.85344232,172.81,172.76,26.50309118]
[1748503909728,7.85344232,172.82,172.75,0.28432314]
[1748503909919,12.27678027,172.82,172.77,12.27678027]
[1748503910123,12.27678027,172.81,172.77,0.14216157]
[1748503910331,12.27678027,172.82,172.77,12.41894184]
[1748503910539,204.74026153,172.84,172.77,12.41894184]
[1748503910835,12.27678027,172.82,172.77,12.41894184]
[1748503911419,5.78670215,172.81,172.77,12.41894184]
[1748503913320,12.27678027,172.82,172.77,12.41894184]
[1748503914256,12.27678027,172.82,172.76,0.14216157]
[1748503914555,5.78670215,172.81,172.77,12.27678027]
[1748503916060,5.78670215,172.81,172.76,0.14216157]
[1748503916260,5.78670215,172.81,172.77,12.27678027]
[1748503918032,5.78670215,172.81,172.76,12.41894184]
[1748503918455,5.78670215,172.81,172.77,12.27678027]
[1748503918653,5.78670215,172.81,172.76,0.14216157]
[1748503918861,5.78670215,172.81,172.77,12.27678027]
[1748503919329,5.78670215,172.81,172.78,12.27678027]
[1748503920546,26.74186156,172.83,172.76,0.14216157]
[1748503920547,5.78636731,172.82,172.76,0.14216157]
[1748503920734,5.78636731,172.82,172.78,12.27678027]
[1748503922862,32.52789407,172.83,172.78,12.27678027]
[1748503924465,5.78603251,172.83,172.79,12.27678027]
[1748503924778,147.2213194,172.84,172.79,12.27678027]
[1748503924779,153.00711953,172.84,172.81,12.27678027]
[1748503924954,153.00711953,172.84,172.82,12.27678027]
[1748503925340,147.2213194,172.84,172.82,12.27678027]
[1748503926956,15.12509003,172.86,172.83,12.41894184]
[1748503927132,15.12509003,172.86,172.83,12.27678027]
[1748503928971,15.12509003,172.86,172.81,0.14216157]
[1748503928972,15.12509003,172.86,172.84,12.27678027]
[1748503929550,15.12509003,172.86,172.83,12.27678027]
[1748503932175,15.12509003,172.86,172.84,12.27678027]
[1748503932176,9.34,172.86,172.84,12.27678027]
[1748503932845,9.34,172.86,172.85,12.27678027]
[1748503933152,147.2213194,172.88,172.86,0.14216157]
[1748503933656,147.2213194,172.88,172.87,12.27678027]
[1748503934075,147.2213194,172.88,172.86,0.14216157]
[1748503934076,153.00567849,172.88,172.86,0.14216157]
[1748503934368,153.00567849,172.88,172.86,7.98988779]
[1748503935971,153.00567849,172.88,172.86,12.4057627]
[1748503936784,153.00567849,172.88,172.85,18.64964886]
[1748503936993,153.00567849,172.88,172.84,12.26360113]
[1748503937588,165.26927962,172.88,172.82,12.26360113]
[1748503937793,165.26927962,172.88,172.81,18.64964886]
[1748503937794,12.26360113,172.86,172.81,18.64964886]
[1748503937945,12.26360113,172.84,172.79,30.91324999]
[1748503938141,12.26360113,172.84,172.78,12.26360113]
[1748503938847,5.78603251,172.83,172.78,12.26360113]
[1748503939078,20.2511138,172.83,172.78,12.26360113]
[1748503941169,26.72868242,172.83,172.78,12.26360113]
[1748503941947,147.2213194,172.82,172.78,12.26360113]
[1748503942257,159.48492053,172.82,172.77,12.26360113]
[1748503943080,5.78670215,172.81,172.77,12.26360113]
[1748503946589,5.78670215,172.81,172.76,0.28432314]
[1748503946748,5.78670215,172.81,172.77,12.26360113]
[1748503948658,5.78670215,172.81,172.76,0.28432314]
[1748503948970,20.25345754,172.81,172.77,12.26360113]
[1748503949562,20.25345754,172.81,172.76,0.28432314]
[1748503949861,20.25345754,172.81,172.77,12.26360113]
[1748503950061,32.51705867,172.81,172.76,12.4057627]
[1748503950561,12.26360113,172.8,172.75,30.91324999]
[1748503951783,20.25580183,172.79,172.75,30.91324999]
[1748503952489,41.83940296,172.79,172.73,0.14216157]
[1748503952667,77.51940296,172.79,172.73,31.19757313]
[1748503953350,77.51940296,172.79,172.74,12.26360113]
[1748503954359,77.51940296,172.79,172.73,18.933972]
[1748503954360,50.78737195,172.79,172.76,12.26360113]
[1748503954685,15.10737195,172.79,172.77,12.26360113]
[1748503956757,9.32,172.79,172.78,18.79181043]
[1748503957589,5.78670215,172.81,172.78,18.79181043]
[1748503960505,5.78670215,172.81,172.78,12.4057627]
[1748503961590,153.00772481,172.82,172.8,12.4057627]
[1748503961795,147.2213194,172.82,172.81,31.19757313]
[1748503962092,15.12611411,172.83,172.82,18.79181043]
[1748503962292,15.12611411,172.83,172.82,12.4057627]
[1748503962679,9.34,172.83,172.82,12.4057627]
[1748503965011,15.12603251,172.83,172.82,12.4057627]
[1748503967172,9.34,172.83,172.82,12.4057627]
[1748503967370,9.34,172.83,172.82,12.54792427]
[1748503967573,5.78546369,172.85,172.83,18.64964886]
[1748503967979,5.78546369,172.85,172.83,12.26360113]
[1748503968404,5.78546369,172.85,172.84,12.26360113]
[1748503968566,5.7846937,172.87,172.82,0.14216157]
[1748503968770,5.7846937,172.87,172.84,12.26360113]
[1748503969767,5.7846937,172.87,172.83,12.26360113]
[1748503970594,5.7846937,172.87,172.82,0.14216157]
[1748503970774,5.7846937,172.87,172.83,12.26360113]
[1748503971880,20.24642795,172.87,172.83,12.26360113]
[1748503973787,20.24642795,172.87,172.82,12.4057627]
[1748503974109,20.24642795,172.87,172.76,1.6448]
[1748503974110,12.26360113,172.85,172.76,1.6448]
[1748503974403,12.26360113,172.85,172.8,30.91324999]
[1748503974772,9.32,172.85,172.81,12.26360113]
[1748503975186,5.78569775,172.84,172.81,12.26360113]
[1748503981105,5.78569775,172.84,172.82,18.79181043]
[1748503981610,5.78569775,172.84,172.83,12.26360113]
[1748503982829,5.78569775,172.84,172.82,0.14216157]
[1748503982979,5.78569775,172.84,172.83,12.26360113]
[1748503984487,15.10547599,172.85,172.83,12.26360113]
[1748503986121,15.10547599,172.85,172.82,12.4057627]
[1748503988317,41.83248469,172.85,172.77,18.64964886]
[1748503988508,12.26360113,172.84,172.8,18.79181043]
[1748503988710,41.83248469,172.85,172.8,18.79181043]
[1748503989722,41.83248469,172.85,172.8,31.05541156]
[1748503990926,12.26360113,172.84,172.8,12.4057627]
[1748503993227,41.83248469,172.85,172.8,12.4057627]
[1748503994033,37.42338135,172.85,172.8,7.99665936]
[1748503995033,29.56888356,172.85,172.8,7.99665936]
[1748503995236,29.56888356,172.85,172.81,7.85449779]
[1748503998814,29.56888356,172.85,172.82,7.85449779]
[1748503998815,15.10547599,172.85,172.82,7.85449779]
[1748503999330,15.10547599,172.85,172.83,7.85449779]
[1748503999700,15.10547599,172.85,172.82,7.99665936]
[1748504000434,15.10547599,172.85,172.83,7.85449779]
[1748504002216,15.10547599,172.85,172.82,7.99665936]
[1748504004535,37.42338135,172.85,172.8,7.85449779]
[1748504006020,29.56888356,172.85,172.81,7.85449779]
[1748504008809,29.56888356,172.85,172.67,1.511]
[1748504008810,26.0,172.78,172.67,1.511]
[1748504009028,26.0,172.78,172.69,7.85449779]
[1748504009029,7.85449779,172.74,172.69,7.85449779]
[1748504009230,7.85449779,172.75,172.69,7.85449779]
[1748504009539,7.85449779,172.75,172.7,18.64964886]
[1748504009716,7.85449779,172.76,172.7,7.85449779]
[1748504010325,202.06376995,172.77,172.71,0.14216157]
[1748504010526,202.06376995,172.77,172.72,7.85449779]
[1748504010729,5.78837693,172.76,172.72,7.85449779]
[1748504011635,5.78837693,172.76,172.71,0.14216157]
[1748504011814,20.25931927,172.76,172.72,7.85449779]
[1748504012018,20.25931927,172.76,172.72,12.28438772]
[1748504014841,5.78837693,172.76,172.74,12.28438772]
[1748504015011,5.78837693,172.76,172.73,18.79181043]
[1748504015212,5.78837693,172.76,172.75,12.28438772]
[1748504017232,5.78837693,172.76,172.74,12.28438772]
[1748504020945,5.78837693,172.76,172.75,12.28438772]
[1748504021150,5.78837693,172.76,172.75,31.07619815]
[1748504022057,156.5413194,172.77,172.76,18.79181043]
[1748504022224,5.78670215,172.81,172.77,0.14216157]
[1748504023735,5.78670215,172.81,172.79,12.28438772]
[1748504024517,5.78670215,172.81,172.8,12.28438772]
[1748504025819,5.78670215,172.81,172.79,0.14216157]
[1748504026021,5.78670215,172.81,172.78,18.64964886]
[1748504026649,5.78670215,172.81,172.78,18.79181043]
[1748504027239,5.78670215,172.81,172.79,12.28438772]
[1748504027447,5.78670215,172.81,172.8,12.28438772]
[1748504027854,15.10639211,172.82,172.81,0.14216157]
[1748504028048,15.10639211,172.82,172.81,12.42654929]
[1748504030039,9.32,172.82,172.81,12.56871086]
[1748504032754,9.32,172.82,172.81,0.14216157]
[1748504032938,9.32,172.82,172.81,12.56871086]
[1748504033728,9.32,172.82,172.81,31.21835972]
[1748504033930,19.79264334,172.84,172.81,31.21835972]
[1748504033931,14.00684914,172.84,172.82,0.28432314]
[1748504034132,5.78544585,172.85,172.83,12.28438772]
[1748504034355,5.78544585,172.85,172.84,12.28438772]
[1748504035064,5.78544585,172.85,172.81,0.28432314]
[1748504035065,5.78544585,172.85,172.83,12.28438772]
[1748504035839,9.3,172.87,172.81,0.28432314]
[1748504035840,5.78502834,172.86,172.81,0.28432314]
[1748504036040,5.78502834,172.86,172.83,12.28438772]
[1748504036368,20.2475992,172.86,172.83,18.79181043]
[1748504036729,20.2475992,172.86,172.82,12.28438772]
[1748504037762,20.2475992,172.86,172.82,0.14216157]
[1748504037944,20.2475992,172.86,172.82,12.42654929]
[1748504038664,20.2475992,172.86,172.83,12.28438772]
[1748504040363,20.2475992,172.86,172.82,12.42654929]
[1748504040667,32.53198692,172.86,172.81,12.28438772]
[1748504040870,12.28438772,172.85,172.8,30.93403658]
[1748504041179,12.28438772,172.85,172.81,0.14216157]
[1748504041389,12.28438772,172.84,172.8,18.64964886]
[1748504041679,20.2475992,172.86,172.78,0.28432314]
[1748504041894,12.28438772,172.84,172.78,0.14216157]
[1748504042057,12.28438772,172.84,172.78,12.28438772]
[1748504042058,5.78636731,172.82,172.78,12.28438772]
[1748504042249,18.07075503,172.82,172.77,30.93403658]
[1748504042449,18.07075503,172.82,172.78,0.14216157]
[1748504042850,32.53667332,172.82,172.78,0.14216157]
[1748504043582,20.2522856,172.82,172.78,12.42654929]
[1748504046190,20.2522856,172.82,172.77,12.28438772]
[1748504046347,12.28438772,172.81,172.77,18.64964886]
[1748504046547,21.58438772,172.81,172.77,18.64964886]
[1748504047074,9.3,172.81,172.76,0.14216157]
[1748504047389,5.78703703,172.8,172.77,18.79181043]
[1748504047866,20.25462962,172.8,172.74,1.5081]
[1748504048061,32.53901734,172.8,172.75,30.93403658]
[1748504048583,20.25462962,172.8,172.76,12.28438772]
[1748504051370,32.53901734,172.8,172.73,0.14216157]
[1748504051572,12.28438772,172.79,172.75,0.14216157]
[1748504051958,32.53901734,172.8,172.75,12.42654929]
[1748504053560,20.25462962,172.8,172.75,12.42654929]
[1748504053758,32.53901734,172.8,172.75,12.42654929]
[1748504054167,12.28438772,172.79,172.72,18.79181043]
[1748504054368,12.28438772,172.79,172.74,12.28438772]
[1748504055065,20.25697418,172.78,172.74,12.28438772]
[1748504056879,32.5413619,172.78,172.73,0.14216157]
[1748504057191,32.5413619,172.78,172.74,18.64964886]
[1748504057363,20.25697418,172.78,172.74,30.93403658]
[1748504059595,12.28438772,172.77,172.72,18.933972]
[1748504059879,12.28438772,172.77,172.72,31.21835972]
[1748504060080,32.5413619,172.78,172.73,12.28438772]
[1748504062261,20.25931927,172.76,172.72,12.56871086]
[1748504062461,20.25931927,172.76,172.72,0.14216157]
[1748504062968,20.25931927,172.76,172.72,12.42654929]
[1748504065991,20.25931927,172.76,172.72,0.14216157]
[1748504066198,20.25931927,172.76,172.72,12.42654929]
[1748504069478,20.25931927,172.76,172.73,12.28438772]
[1748504069681,5.78837693,172.76,172.75,31.07619815]
[1748504071793,15.08815021,172.77,172.75,31.07619815]
[1748504071999,15.08815021,172.77,172.76,12.28438772]
[1748504072808,15.08815021,172.77,172.76,31.07619815]
[1748504073013,9.3,172.77,172.76,31.07619815]
[1748504073278,5.78774446,172.78,172.77,18.79181043]
[1748504073499,5.78774446,172.78,172.77,31.07619815]
[1748504074113,147.2213194,172.8,172.77,31.07619815]
[1748504074114,5.78737195,172.79,172.77,31.07619815]
[1748504076586,5.78737195,172.79,172.77,0.14216157]
[1748504079411,5.78737195,172.79,172.78,12.28438772]
[1748504086214,5.78737195,172.79,172.77,12.42654929]
[1748504087425,5.78737195,172.79,172.78,31.07619815]
[1748504087637,153.00847209,172.8,172.78,31.07619815]
[1748504087835,153.00847209,172.8,172.79,12.28438772]
[1748504088534,153.00847209,172.8,172.79,31.07619815]
[1748504089610,147.2213194,172.8,172.79,31.21835972]
[1748504091224,153.00835643,172.8,172.79,31.21835972]
[1748504091602,147.2213194,172.8,172.79,31.21835972]
[1748504093306,5.78678574,172.81,172.8,18.79181043]
[1748504093626,5.78678574,172.81,172.8,31.07619815]
[1748504098035,5.78678574,172.81,172.8,7.99643956]
[1748504100243,15.08648602,172.82,172.8,7.99643956]
[1748504100419,15.08648602,172.82,172.81,7.85427799]
[1748504101115,9.3,172.82,172.81,26.78824999]
[1748504101439,5.78580513,172.84,172.82,18.79181043]
[1748504101643,5.78580513,172.84,172.83,7.85427799]
[1748504103946,5.78580513,172.84,172.83,12.26705841]
[1748504109845,5.78580513,172.84,172.79,18.79181043]
[1748504110037,12.26705841,172.83,172.79,12.26705841]
[1748504110238,5.78636731,172.82,172.78,12.26705841]
[1748504111547,20.2522856,172.82,172.78,12.26705841]
[1748504111759,32.51934401,172.82,172.78,12.26705841]
[1748504111968,32.51934401,172.82,172.77,12.26705841]
[1748504112659,32.51934401,172.82,172.75,0.28432314]
[1748504112962,12.26705841,172.8,172.75,12.26705841]
[1748504113160,21.54705841,172.8,172.75,12.26705841]
[1748504113357,21.54705841,172.8,172.76,0.14216157]
[1748504113964,5.78737195,172.79,172.76,18.79181043]
[1748504114153,5.78737195,172.79,172.76,31.05886884]
[1748504115431,15.06712418,172.8,172.78,12.26705841]
[1748504115752,15.06712418,172.8,172.79,12.26705841]
[1748504115956,15.06712418,172.8,172.78,12.40921998]
[1748504116554,15.06712418,172.8,172.78,0.14216157]
[1748504116936,15.06712418,172.8,172.77,12.26705841]
[1748504117350,15.06712418,172.8,172.77,0.14216157]
[1748504118368,15.06712418,172.8,172.76,12.26705841]
[1748504118547,29.53471677,172.8,172.76,12.26705841]
[1748504123962,147.2213194,172.79,172.75,12.26705841]
[1748504126465,5.78770691,172.78,172.75,12.26705841]
[1748504128663,5.78770691,172.78,172.74,30.91670727]
[1748504132891,20.25697418,172.78,172.74,30.91670727]
[1748504133777,20.25697418,172.78,172.69,6.0518]
[1748504133778,32.52403259,172.78,172.69,6.0518]
[1748504133987,155.08312684,172.77,172.72,7.86180744]
[1748504134689,7.86180744,172.76,172.71,0.28432314]
[1748504134986,5.78871201,172.75,172.72,18.64964886]
[1748504135458,5.78871201,172.75,172.72,7.86180744]
[1748504136171,5.78871201,172.75,172.72,12.28402193]
[1748504137758,5.78837693,172.76,172.72,12.28402193]
[1748504139155,20.25931927,172.76,172.72,12.28402193]
[1748504141894,20.25931927,172.76,172.73,12.28402193]
[1748504142099,5.78837693,172.76,172.73,12.28402193]
[1748504142403,5.78837693,172.76,172.74,12.28402193]
[1748504155912,5.78837693,172.76,172.74,7.86023072]
[1748504156406,5.78837693,172.76,172.71,0.14216157]
[1748504156608,5.78837693,172.76,172.73,18.79181043]
[1748504156912,5.78837693,172.76,172.73,8.00239229]
[1748504174124,5.78837693,172.76,172.72,18.64964886]
[1748504174302,20.25931927,172.76,172.72,18.64964886]
[1748504174508,20.25931927,172.76,172.72,26.50987958]
[1748504178601,20.25931927,172.76,172.72,7.86023072]
[1748504179528,20.25931927,172.76,172.73,7.86023072]
[1748504186003,20.25931927,172.76,172.71,0.14216157]
[1748504186237,20.25931927,172.76,172.71,8.00239229]
[1748504187319,28.11954999,172.76,172.71,8.00239229]
[1748504187715,7.86023072,172.74,172.69,18.64964886]
[1748504187908,7.86023072,172.74,172.69,26.50987958]
[1748504188320,49.20120396,172.76,172.67,0.14216157]
[1748504188321,7.86023072,172.75,172.7,7.86023072]
[1748504189920,5.78904712,172.74,172.7,7.86023072]
[1748504190527,5.78904712,172.74,172.72,7.86023072]
[1748504190838,14.47094234,172.76,172.73,8.00239229]
[1748504190839,5.78837693,172.76,172.73,8.00239229]
[1748504191134,5.78837693,172.76,172.74,7.86023072]
[1748504196527,147.2213194,172.77,172.75,8.00239229]
[1748504196722,147.2213194,172.77,172.76,7.86023072]
[1748504197316,147.2213194,172.77,172.76,26.65204115]
[1748504197516,15.06796038,172.78,172.76,26.50987958]
[1748504198610,15.06796038,172.78,172.75,8.00239229]
[1748504199424,15.06796038,172.78,172.76,7.86023072]
[1748504199620,15.06796038,172.78,172.75,0.14216157]
[1748504199814,15.06796038,172.78,172.76,7.86023072]
[1748504201946,15.06796038,172.78,172.75,7.86023072]
[1748504209441,37.39745837,172.78,172.73,7.86023072]
[1748504210858,7.86023072,172.77,172.72,7.86023072]
[1748504211039,7.86023072,172.77,172.71,18.79181043]
[1748504211238,7.86023072,172.77,172.72,7.86023072]
[1748504213265,5.78837693,172.76,172.72,7.86023072]
[1748504213455,5.78837693,172.76,172.73,7.86023072]
[1748504214547,5.7880419,172.77,172.73,7.86023072]
[1748504215050,20.25814666,172.77,172.73,7.86023072]
[1748504216348,28.11837738,172.77,172.72,0.14216157]
[1748504216650,28.11837738,172.77,172.72,8.00239229]
[1748504216948,28.11837738,172.77,172.72,18.79181043]